[Event "Pan-American Collegiate-ch 2025"]
[Site "Charlotte"]
[Date "2025.01.04"]
[Round "4.8"]
[White "Kostolansky, Sebastian Lukas"]
[Black "Rodrigue-Lemieux, Shawn"]
[Result "1/2-1/2"]
[Annotator "TA"]
[ECO "C70"]
[WhiteElo "2421"]
[BlackElo "2500"]
[PlyCount "114"]
[EventDate "2025.01.02"]
[EventType "team-tourn"]
[EventCountry "USA"]
[SourceTitle "playchess.com"]
[Source "ChessBase"]
[SourceQuality "1"]
[TimeControl "5400+30"]

{[%evp 16,114,46,35,30,33,41,22,35,33,45,38,41,0,18,25,4,6,36,18,8,0,31,6,57,0,0,0,7,0,0,0,0,0,0,0,0,0,0,0,0,0,0,0,0,0,0,0,0,0,0,0,0,0,59,0,0,0,0,0,0,0,0,0,0,-138,0,0,0,0,0,0,8,8,8,0,8,0,0,4,0,8,64,0,0,0,8,8,12,0,0,0,8,8,8,0,0,0,0,0,0]} 1. e4 {[%emt 0:00:03]} e5 {[%emt 0:07:56]} 2. Nf3 {[%emt 0:00:08]} Nc6 {[%emt 0:00:10]} 3. Bb5 {[%emt 0:00:04]} a6 {[%emt 0:00:07]} 4. Ba4 {[%emt 0:00:05]} b5 {[%emt 0:00:07]} 5. Bb3 {[%emt 0:00:04]} Na5 {[%emt 0:00:07]} 6. O-O {[%emt 0:04:16]} d6 {[%emt 0:00:22]} 7. d4 {[%emt 0:00:04]} exd4 {[%emt 0:00:28]} 8. Nxd4 {[%emt 0:00:08]} Bb7 {[%emt 0:00:33] [#]} 9. c4 $1 {[%emt 0:16:48]} c5 {[%emt 0:01:47]} 10. Nf5 {[%emt 0:01:58]} g6 {[%emt 0:00:34]} 11. Ng3 {[%emt 0:05:53]} Bg7 {[%emt 0:01:51]} 12. Nc3 {[%emt 0:02:57]} Nxb3 {[%emt 0:01:39]} 13. axb3 {[%emt 0:11:22]} b4 {[%emt 0:40:25]} 14. Nd5 {[%emt 0:10:01]} Nf6 {[%emt 0:00:33]} 15. Bg5 {[%emt 0:01:02][%cal Oe4e5]} h6 {[%emt 0:07:44][%cal Bh7h6,Bh6h5,Bh5h4,Bh4h3][%mdl 32]} 16. Nxf6+ {[%emt 0:06:27]} Bxf6 {[%emt 0:00:23]} 17. Bxf6 {[%emt 0:07:29]} Qxf6 {[%emt 0:00:08]} 18. Qd2 {[%emt 0:00:31]} h5 {[%emt 0:02:04]} 19. Rad1 {[%emt 0:03:33][%cal Oe4e5]} Rd8 {[%emt 0:02:58]} (19... O-O-O $11) 20. f4 {[%emt 0:11:58]} (20. Nh1 $14) 20... h4 $11 {[%emt 0:10:42]} 21. Nh1 $1 {[%emt 0:00:06]} h3 {[%emt 0:01:06]} (21... Bxe4 $2 22. Rfe1 $18) 22. g3 {[%emt 0:02:41]} Qe7 {[%emt 0:03:18]} (22... Bxe4 $2 23. Rfe1 $18) 23. Nf2 {[%emt 0:04:27]} Kd7 $1 {[%emt 0:02:23]} 24. e5 {[%emt 0:02:13][%cal Re5d6]} Kc7 {[%emt 0:02:26]} 25. exd6+ {[%emt 0:02:24]} Qxd6 {[%emt 0:00:20]} 26. Qxd6+ {[%emt 0:01:26]} Rxd6 {[%emt 0:00:07]} 27. Rxd6 {[%emt 0:00:04]} Kxd6 {[%emt 0:00:05][%mdl 4096] Endgame KRB-KRN} 28. Rd1+ {[%emt 0:05:12]} Kc7 {[%emt 0:00:38]} 29. Rd2 {[%emt 0:01:00]} f6 {[%emt 0:09:57]} 30. Ng4 {[%emt 0:00:32]} Rf8 {[%emt 0:01:02]} 31. Kf2 {[%emt 0:00:31]} Be4 {[%emt 0:00:18]} 32. Ne3 {[%emt 0:00:30]} a5 {[%emt 0:01:11]} 33. Nd5+ {[%emt 0:00:20]} Kb7 {[%emt 0:00:02]} 34. Ne7 {[%emt 0:00:23]} Kc7 {[%emt 0:01:25]} (34... Re8 $11 35. Rd7+ Kb6) 35. Nd5+ {[%emt 0:00:19]} ({Better is} 35. Re2 $1 $14 Bg2 36. Nxg6) 35... Kb7 {[%emt 0:00:13]} 36. Ne7 {[%emt 0:00:03]} Re8 {[%emt 0:02:41]} 37. Rd7+ {[%emt 0:00:24]} Kb8 {[%emt 0:00:25]} 38. g4 {[%emt 0:00:41]} Bc2 {[%emt 0:00:30]} 39. Nc6+ $1 {[%emt 0:00:48]} Kc8 {[%emt 0:00:01]} 40. Ra7 {[%emt 0:01:02] [#]} (40. Rd2 $11 {remains equal.} Be4 (40... Bxb3 41. Nxa5 Ba4 42. b3 $14) 41. Na7+ (41. Nxa5 $2 Kc7 $19) 41... Kb7 42. Rd7+ (42. Nb5 Re7 $11) 42... Kb6 43. Nb5) 40... Re4 {[%emt 0:01:08]} (40... Re6 $1 $17 {[%cal Re6c6]} 41. Nxa5 Be4) 41. Ne7+ {[%emt 0:00:32]} Kd8 {[%emt 0:00:09]} (41... Kb8 $5 42. Nc6+ $8 Kc8 $11) 42. Nd5 {[%emt 0:00:29]} Rd4 {[%emt 0:00:31]} (42... Bxb3 $2 {is the wrong capture.} 43. Ra8+ (43. Rxa5 Rd4 $14) 43... Kd7 44. Nxf6+ (44. Rxa5 Kc6 $15) 44... Kc6 45. Nxe4 $18) 43. Rxa5 {[%emt 0:00:26]} Rd2+ {[%emt 0:00:16]} 44. Kg3 {[%emt 0:00:34]} Rd3+ {[%emt 0:00:06]} 45. Kh4 {[%emt 0:00:04]} Rxb3 {[%emt 0:00:17]} 46. Rxc5 {[%emt 0:00:34]} (46. Nxf6 Rxb2 47. Ra8+ Kc7) 46... Rxb2 {[%emt 0:00:12]} 47. Rb5 {[%emt 0:00:23]} b3 {[%emt 0:00:01]} 48. c5 {[%emt 0:00:06][%cal Oc5c6]} Be4 {[%emt 0:02:21]} (48... Kc8 $11) 49. Nxf6 {[%emt 0:00:57]} (49. Rb8+ $1 $14 Kd7 50. Nxf6+ Kc7 51. Rb6) 49... Bd3 {[%emt 0:00:39]} 50. Rb7 {[%emt 0:00:56]} Ba6 $132 {[%emt 0:01:04][%mdl 2048] Black puts up resistance} 51. Rb4 {[%emt 0:00:26]} Kc7 {[%emt 0:00:00]} 52. f5 {[%emt 0:00:30]} gxf5 {[%emt 0:00:00]} 53. g5 {[%emt 0:00:19] aiming for g6.} Rxh2 {[%emt 0:00:45]} 54. Rxb3 {[%emt 0:00:25]} Bf1 {[%emt 0:00:12]} 55. g6 {[%emt 0:00:50]} Rg2 {[%emt 0:00:29]} 56. Rxh3 {[%emt 0:00:30]} (56. Kxh3 Rxg6+ 57. Kh4 Rxf6 $17) 56... Rxg6 {[%emt 0:00:05] and ...Rh6+ should not be overlooked} 57. Rf3 {[%emt 0:00:08]} Rxf6 {[%emt 0:00:34]} 1/2-1/2

[Event "Pan-American Collegiate-ch 2025"]
[Site "Charlotte"]
[Date "2025.01.04"]
[Round "4.9"]
[White "Can, Isik"]
[Black "Kevlishvili, Robby"]
[Result "1/2-1/2"]
[Annotator "TA"]
[ECO "B32"]
[WhiteElo "2543"]
[BlackElo "2560"]
[PlyCount "23"]
[EventDate "2025.01.02"]
[EventType "team-tourn"]
[EventCountry "USA"]
[SourceTitle "playchess.com"]
[Source "ChessBase"]
[SourceQuality "1"]
[TimeControl "5400+30"]

{[%evp 10,23,23,23,26,20,28,20,30,16,34,18,28,25,26,10]} 1. e4 {[%emt 0:02:19]} c5 {[%emt 0:00:06]} 2. Nf3 {[%emt 0:00:05][%cal Bg1f3,Bf3d4,Bd4b5,Bb5a3][%mdl 32]} Nc6 {[%emt 0:00:05]} 3. d4 {[%emt 0:00:31]} cxd4 {[%emt 0:00:09]} 4. Nxd4 {[%emt 0:00:07]} e5 {[%emt 0:00:09]} 5. Nb5 {[%emt 0:00:07]} d6 {[%emt 0:00:06]} 6. c4 {[%emt 0:01:32]} g6 {[%emt 0:00:31]} 7. N1c3 {[%emt 0:01:08] Strongly threatening Nd5.} a6 {[%emt 0:00:15]} 8. Na3 {[%emt 0:00:07]} Bg7 {[%emt 0:00:45]} 9. Be3 {[%emt 0:06:02]} Be6 {[%emt 0:00:28]} 10. Be2 {[%emt 0:02:42]} Rc8 {[%emt 0:05:00]} 11. O-O {[%emt 0:00:37]} Nd4 {[%emt 0:02:09]} 12. Nd5 {[%emt 0:07:23]} 1/2-1/2

[Event "Pan-American Collegiate-ch 2025"]
[Site "Charlotte"]
[Date "2025.01.04"]
[Round "4.10"]
[White "Batsuren, Dambasuren"]
[Black "Tari, Aryan"]
[Result "1-0"]
[Annotator "TA"]
[ECO "D35"]
[WhiteElo "2523"]
[BlackElo "2623"]
[PlyCount "85"]
[EventDate "2025.01.02"]
[EventType "team-tourn"]
[EventCountry "USA"]
[SourceTitle "playchess.com"]
[Source "ChessBase"]
[SourceQuality "1"]
[TimeControl "5400+30"]

{[%evp 12,85,31,36,46,33,63,32,30,27,22,20,21,16,30,22,31,21,10,11,44,37,34,24,66,19,51,51,72,58,73,22,63,54,88,81,84,79,97,70,100,113,135,136,145,145,220,292,288,128,470,404,394,235,679,660,647,627,609,495,484,479,623,664,789,756,965,916,903,899,2815,2784,29995,29996,29997,29998]} 1. d4 {[%emt 0:00:02]} d5 {[%emt 0:00:45]} 2. c4 {[%emt 0:00:12]} e6 {[%emt 0:00:16]} 3. Nc3 {[%emt 0:00:10]} Nf6 {[%emt 0:00:15]} 4. cxd5 {[%emt 0:00:32]} exd5 {[%emt 0:00:06]} 5. Bg5 {[%emt 0:00:07][%cal Bc1g5,Bg5h4,Bh4g3,Bg3e5][%mdl 32]} Bb4 {[%emt 0:00:06]} 6. e3 {[%emt 0:00:13]} h6 {[%emt 0:00:09][%cal Bh7h6,Bh6h5,Bh5h4][%mdl 32]} 7. Bh4 {[%emt 0:00:21]} g5 {[%emt 0:00:06]} 8. Bg3 {[%emt 0:00:06]} h5 {[%emt 0:00:04]} 9. Qb3 {[%emt 0:10:38]} Bxc3+ {[%emt 0:01:18] White is slightly better.} 10. Qxc3 {[%emt 0:04:41]} Nc6 {[%emt 0:00:30]} 11. Bd3 {[%emt 0:01:48] Black must now prevent h4.} h4 {[%emt 0:02:51]} 12. Be5 {[%emt 0:00:17]} Ne4 {[%emt 0:00:17]} 13. Bxe4 {[%emt 0:06:50]} Nxe5 {[%emt 0:00:13]} 14. Bc2 $36 {[%emt 0:00:11][%mdl 2048] White has good play.} Nc6 {[%emt 0:00:26]} 15. h3 {[%emt 0:08:22]} Qe7 {[%emt 0:07:44]} 16. Nf3 {[%emt 0:01:36]} Rh6 {[%emt 0:07:45]} 17. Rc1 {[%emt 0:03:56]} Bd7 {[%emt 0:18:07]} 18. a3 {[%emt 0:04:46]} (18. Bb3 $14) 18... f5 {[%emt 0:15:27]} 19. Qc5 $1 {[%emt 0:05:16]} Rd6 {[%emt 0:07:28]} 20. Ba4 {[%emt 0:09:01]} Qf6 {[%emt 0:00:33]} 21. Qc3 {[%emt 0:04:39] White is more active.} (21. Qc2 $16) 21... Re6 {[%emt 0:09:14]} 22. Bb3 {[%emt 0:02:06]} g4 {[%emt 0:01:50]} 23. Ne5 {[%emt 0:06:24]} Nxe5 {[%emt 0:01:10]} 24. dxe5 {[%emt 0:00:06]} Rxe5 {[%emt 0:01:58] [#]} 25. hxg4 {[%emt 0:01:29][%cal Oh1h4]} (25. Qxc7 $2 Rc8 26. Qxc8+ Bxc8 27. Rxc8+ Ke7 28. hxg4 fxg4 $19) 25... fxg4 {[%emt 0:05:29] [#]} 26. Rxh4 {[%emt 0:03:02] Hoping for Rh5.} d4 {[%emt 0:04:42]} (26... c6 27. Rh5) 27. Qxd4 {[%emt 0:00:57]} (27. Qxc7 $2 dxe3 $19 (27... Rc8 $2 28. Rh8+ Qxh8 29. Qxc8+ Bxc8 30. Rxc8+ Ke7 31. Rxh8 $18) (27... Rc8 $2 28. Rh8+ Qxh8 29. Qxc8+ Bxc8 30. Rxc8+ Ke7 31. Rxh8 $18)) 27... O-O-O {[%emt 0:00:03]} 28. Rh5 {[%emt 0:01:23]} Bf5 {[%emt 0:07:52]} (28... Rf5 $16 29. Rxf5 (29. Qxg4 $2 Qxb2 $19) 29... Qxf5) 29. Qf4 $18 {[%emt 0:02:05]} (29. Qxa7 $6 c6) 29... Kb8 {[%emt 0:01:54] [#]} 30. Rd1 {[%emt 0:06:16]} ({Weaker is} 30. Bc2 Rc5 31. Rd1 (31. Rxf5 Qxb2 32. e4 Rxc2 $17) 31... Rxc2 $14 (31... Bxc2 $2 32. Qxf6 Rxd1+ 33. Ke2 $18)) (30. Rh7 $1 $18 {and the rest is easy.} g3 31. Rcxc7 (31. Rhxc7 Qd6 $18) 31... gxf2+ 32. Kxf2 Bxh7 33. Qxf6 Rf5+ 34. Qxf5 Bxf5 35. Rc3) 30... Rxd1+ $4 {[%emt 0:02:06][%mdl 8192] Loses the game.} (30... Rh8 $16 {is more resistant.} 31. Be6 Rxe6 (31... Rxh5 $2 {too greedy.} 32. Qxe5 Qf8 33. Qg7 $18) 32. Qxf5 Rf8 33. Qxf6 (33. Qxg4 $2 Qxf2#) 33... Rexf6) 31. Bxd1 {[%emt 0:00:21][%cal Bb3d1,Bd1g4,Bg4f5][%mdl 32]} Rd5 {[%emt 0:00:05][%cal Of6b2]} 32. Qh6 {[%emt 0:06:58]} (32. Bxg4 $2 {loses.} Qxb2 33. f3 Rc5 $19) (32. e4 $142 Rxd1+ 33. Kxd1 Qd4+ 34. Ke1) 32... Qe7 $2 {[%emt 0:03:18]} (32... Qxh6 33. Rxh6 a6) 33. Bxg4 {[%emt 0:01:17]} Rd8 {[%emt 0:00:06]} 34. Bxf5 {[%emt 0:01:35]} Qc5 {[%emt 0:00:01] ( -> ...Qc1+)} 35. Ke2 {[%emt 0:00:16]} Qd5 {[%emt 0:00:21][%csl Gd8][%cal Rd5d1]} 36. f3 {[%emt 0:06:22][%cal Bf2f3,Bf3f4][%mdl 32]} (36. Qh8 $2 Qd1#) 36... Qe5 {[%emt 0:00:01] Dodges Qf6} 37. f4 {[%emt 0:01:02]} Qxb2+ {[%emt 0:01:13]} 38. Kf3 {[%emt 0:00:05]} a5 {[%emt 0:01:31]} 39. Rh1 {[%emt 0:01:19] Rb1 is the strong threat.} Qxa3 {[%emt 0:00:07]} 40. Qf6 {[%emt 0:00:10]} Rd2 {[%emt 0:01:28]} 41. Be4 {[%emt 0:00:57] Intending Rh8+ and mate.} Qa2 {[%emt 0:01:27]} 42. Rh8+ {[%emt 0:00:13]} Ka7 {[%emt 0:00:09] [#]} 43. Ra8+ $3 {[%emt 0:00:08][%mdl 512] Weighted Error Value: White=0.23 (precise) /Black=0.58.  Loses game:     	---       	Black=1      Mistake:       	White=4     	Black=2      Inaccurate:     	White=1     	Black=8      OK:         	White=13    	Black=7      Best:        	White=1     	Black=3      Strong:       	White=1     	---        Brilliant:      	White=1     	---} 1-0

[Event "Pan-American Collegiate-ch 2025"]
[Site "Charlotte"]
[Date "2025.01.04"]
[Round "4.11"]
[White "Antipov, Mikhail Al."]
[Black "Kacharava, Nikolozi"]
[Result "1/2-1/2"]
[Annotator "TA"]
[ECO "C55"]
[WhiteElo "2577"]
[BlackElo "2524"]
[PlyCount "83"]
[EventDate "2025.01.02"]
[EventType "team-tourn"]
[EventCountry "USA"]
[SourceTitle "playchess.com"]
[Source "ChessBase"]
[SourceQuality "1"]
[TimeControl "5400+30"]

{[%evp 37,83,0,0,-9,-8,-27,-13,-2,10,-34,0,-47,-44,-36,0,-43,-46,-45,-11,-19,-7,-16,-6,-81,65,0,-15,-8,0,0,0,0,0,-248,-252,-806,-822,-779,-182,-163,0,0,0,0,0,0,0,-819]} 1. e4 {[%emt 0:00:25]} e5 {[%emt 0:00:08]} 2. Nf3 {[%emt 0:00:04]} Nc6 {[%emt 0:00:08]} 3. Bc4 {[%emt 0:00:04]} Nf6 {[%emt 0:00:15]} 4. d3 {[%emt 0:00:05]} Be7 {[%emt 0:00:20]} 5. Nc3 {[%emt 0:00:30]} d6 {[%emt 0:01:18]} 6. a3 {[%emt 0:00:09]} Bg4 {[%emt 0:01:01]} 7. Be3 {[%emt 0:02:28]} Nd4 {[%emt 0:04:52]} 8. Bxd4 {[%emt 0:00:32]} exd4 {[%emt 0:00:02]} 9. Nd5 {[%emt 0:00:09]} Nxd5 {[%emt 0:07:13]} 10. Bxd5 {[%emt 0:00:06]} c6 {[%emt 0:00:21]} 11. Bb3 {[%emt 0:02:58]} O-O {[%emt 0:05:04]} 12. O-O {[%emt 0:01:17]} Qb6 {[%emt 0:01:41]} 13. h3 {[%emt 0:01:28]} Be6 {[%emt 0:00:26]} 14. Nd2 {[%emt 0:02:40]} d5 {[%emt 0:04:28]} 15. f4 {[%emt 0:05:29]} f6 {[%emt 0:05:31]} 16. Qf3 {[%emt 0:09:45]} Rfd8 {[%emt 0:02:19]} 17. Qf2 {[%emt 0:16:47]} Bc5 {[%emt 0:05:36]} 18. Rae1 {[%emt 0:08:03]} Bf7 {[%emt 0:01:06]} 19. Re2 {[%emt 0:00:31]} a5 {[%emt 0:03:18]} 20. a4 {[%emt 0:00:07]} Qb4 {[%emt 0:06:50]} 21. g4 {[%emt 0:03:05]} b5 {[%emt 0:02:11]} 22. Ra1 $1 {[%emt 0:00:20]} Re8 {[%emt 0:03:45]} 23. Kg2 {[%emt 0:03:12]} Ra7 {[%emt 0:11:38]} 24. Qf3 {[%emt 0:16:49]} (24. e5 $11) 24... Rae7 $15 {[%emt 0:02:37]} 25. h4 {[%emt 0:00:07]} Bb6 {[%emt 0:13:22]} 26. Kh3 {[%emt 0:10:47]} Kh8 {[%emt 0:02:04]} 27. f5 {[%emt 0:00:45]} dxe4 {[%emt 0:03:36]} 28. Nxe4 {[%emt 0:00:15]} Bxb3 {[%emt 0:00:47]} 29. cxb3 {[%emt 0:00:04]} Qxb3 {[%emt 0:00:20]} 30. g5 {[%emt 0:01:10]} (30. Rc1 $11) 30... c5 {[%emt 0:03:34]} (30... bxa4 $17 31. gxf6 gxf6) 31. gxf6 {[%emt 0:01:51]} ({White should play} 31. Rae1 $1 $14 Qd5 (31... bxa4 $2 32. Nxf6 Rxe2 33. Rxe2 $18) (31... c4 $2 32. Nd2 $18) 32. axb5 (32. gxf6 gxf6 33. axb5 Rg8 $11)) 31... gxf6 $11 {[%emt 0:00:05]} 32. Rg1 {[%emt 0:00:16]} bxa4 {[%emt 0:05:15]} (32... Qxa4 33. Nd6 Rg8 34. Rxg8+ Kxg8 35. Rg2+ (35. Rxe7 Kf8 36. Rf7+ Kg8 37. Qg4+ Kh8 38. Qg7#) 35... Kh8 36. Qa8+) 33. h5 $1 {[%emt 0:02:23]} Bc7 {[%emt 0:02:00]} (33... c4 34. Nd6 c3 35. Qb7 (35. Nxe8 Bd8 36. Rxe7 Bxe7 37. Qg3 Qf7 38. Nxf6 Qg6 39. hxg6 Kg7 40. gxh7+ Kxf6 41. h8=Q+ Kxf5 42. Qg4#) (35. Rxe7 Rg8 36. Qb7 Rxg1 37. Re8+ Rg8 38. h6 Bc7 39. Qxc7 Rxe8 40. Qg7#) 35... Re3+ 36. Rxe3 (36. Kh4 Rg8 $18) 36... Rxe3+ 37. Kh4) 34. h6 $1 {[%emt 0:01:06]} Bf4 {[%emt 0:02:08]} 35. Rg4 $2 {[%emt 0:08:52]} (35. Rg7 $11 {and White stays safe.} Bxh6 36. Nxf6 Kxg7 (36... Rxe2 37. Rxh7#) (36... Bxg7 $2 37. Rxe7 Rf8 38. Nh5 $18) 37. Nxe8+ Kf8 38. Nc7 (38. Rxe7 Kxe7 39. Qe4+ Kd7 $11) 38... Rxe2 (38... Rxc7 39. Qa8+ Kg7 40. f6+ Kxf6 41. Qf3+ Kg6 42. Qe4+ Kg7 43. Qe5+ Kg8 44. Rg2+ Kf8 45. Qxc7 $11) 39. Qxe2) 35... Bxh6 $19 {[%emt 0:00:30]} 36. Rh4 $2 {[%emt 0:00:03]} (36. Nxc5 Rxe2 (36... Re3 37. Rxe3 Rxe3 38. Qxe3 $16) 37. Nxb3) 36... c4 $19 {[%emt 0:01:05]} 37. Rxh6 {[%emt 0:02:40]} Qxd3 $2 {[%emt 0:00:08]} (37... cxd3 38. Re1 Qb7 (38... Qxb2 39. Nxf6 Qd2 40. Rxe7 $16) (38... d2 $2 39. Nxd2 Re3 40. Rxe3 $19) 39. Rxf6 Rxe4 40. Rf8+ Rxf8 41. Qxe4 Qxe4 (41... Qxb2 42. Qe5+ Kg8 43. Rg1+) 42. Rxe4 Rd8 (42... Rxf5 $2 43. Rxd4 Rb5 44. Rd8+ Kg7 45. Kg4 $19)) 38. Kg2 $19 {[%emt 0:00:05]} Rxe4 $2 {[%emt 0:01:38]} ({Better is} 38... a3 $19 39. bxa3 Rg8+ (39... Rxe4 40. Rxh7+ Kxh7 41. Qh5+ Kg7 42. Qg6+ Kf8 43. Qxf6+ Kg8 44. Qg6+ Kf8 45. Qf6+ Kg8 46. Qg6+ Kf8 47. Qf6+ $11) 40. Kf2 Qb1) 39. Rxh7+ $1 $11 {[%emt 0:00:04]} Kxh7 {[%emt 0:00:35]} (39... Kg8 $5 40. Rh8+ $8 Kxh8 41. Qh5+ Kg7 42. Qg6+ Kh8 43. Qxf6+ Kg8 44. Qg6+ Kh8 45. Qh5+ Kg8 46. Qg6+ $11) 40. Qh5+ {[%emt 0:00:02]} Kg7 {[%emt 0:00:06]} 41. Qg6+ {[%emt 0:00:03]} Kf8 {[%emt 0:00:24]} 42. Qxf6+ {[%emt 0:00:08]} 1/2-1/2

[Event "Pan-American Collegiate-ch 2025"]
[Site "Charlotte"]
[Date "2025.01.04"]
[Round "4.12"]
[White "Wang, Tianqi"]
[Black "Budisavljevic, Luka"]
[Result "0-1"]
[Annotator "TA"]
[ECO "E14"]
[WhiteElo "2379"]
[BlackElo "2499"]
[PlyCount "64"]
[EventDate "2025.01.02"]
[EventType "team-tourn"]
[EventCountry "USA"]
[SourceTitle "playchess.com"]
[Source "ChessBase"]
[SourceQuality "1"]
[TimeControl "5400+30"]

{[%evp 33,64,-46,-36,-193,-109,-167,112,-22,-33,-183,-172,-190,-82,-260,0,0,92,-248,-278,-273,-260,-263,-270,-269,8,0,381,-4,-7,-204,-8,-361,29]} 1. Nf3 {[%emt 0:00:02]} d5 {[%emt 0:01:29]} 2. d4 {[%emt 0:00:20]} Nf6 {[%emt 0:00:53]} 3. c4 {[%emt 0:00:07]} e6 {[%emt 0:00:35]} 4. e3 {[%emt 0:00:08]} b6 {[%emt 0:00:39]} 5. b3 {[%emt 0:00:21]} Bb7 {[%emt 0:00:45]} 6. Bd3 {[%emt 0:00:07]} c5 {[%emt 0:01:20]} 7. O-O {[%emt 0:02:33]} cxd4 {[%emt 0:00:53]} 8. exd4 {[%emt 0:00:05]} Bd6 {[%emt 0:01:02]} 9. Bb2 {[%emt 0:00:22]} O-O {[%emt 0:00:56]} 10. Nbd2 {[%emt 1:31:25]} Nc6 {[%emt 0:01:18]} 11. Qe2 {[%emt 0:00:00]} Rc8 {[%emt 0:01:16]} 12. Rad1 {[%emt 0:00:00]} Qe7 {[%emt 0:01:09]} 13. Ne5 {[%emt 0:00:00]} a5 {[%emt 0:03:53]} 14. f4 {[%emt 0:00:00]} g6 {[%emt 0:09:22]} 15. Qe3 {[%emt 0:00:00]} a4 {[%emt 0:02:40]} 16. Bb1 {[%emt 0:00:00]} Na5 {[%emt 0:11:40]} 17. Qh3 {[%emt 0:00:00]} (17. bxa4 Nxc4 (17... dxc4 18. Ne4 $17) 18. Qb3 Nxd2 19. Rxd2 Ne4 20. Bxe4 dxe4 $15) (17. Rde1 $11) 17... Bb4 {[%emt 0:13:36]} 18. Ndf3 $2 {[%emt 0:00:00]} (18. Bd3 $15) 18... axb3 {[%emt 0:11:57]} (18... dxc4 $19 19. Ng5 c3 (19... axb3 20. Qh6 $15) (19... cxb3 20. d5 $18)) 19. axb3 {[%emt 0:00:00]} (19. cxd5 $17 bxa2 (19... Bxd5 20. axb3 Bxb3 21. f5 $17) 20. Bxa2) 19... Nxb3 $2 {[%emt 0:01:35]} (19... dxc4 $19 20. bxc4 Nxc4 21. Nxc4 Rxc4) 20. cxd5 {[%emt 0:00:00]} (20. Ng5 $1 $16) 20... Bxd5 $11 {[%emt 0:01:20]} 21. Ng5 {[%emt 0:00:00]} ({White should try} 21. Rf2 $15) 21... Nd2 $19 {[%emt 0:06:02]} 22. Qh6 {[%emt 0:00:00]} Nxf1 {[%emt 0:01:05]} (22... Nxb1 $19 {is more deadly.} 23. Ng4 Rfe8 24. Nxf6+ Qxf6 25. Qxh7+ Kf8) 23. Rxf1 $2 {[%emt 0:00:00]} (23. Ng4 $17 {was the only defense.} Rfd8 (23... Nxg4 24. Qxh7#) 24. Rxf1) 23... Bc3 $2 {[%emt 0:07:12]} (23... Rc7 $19 {...Rfc8 is the strong threat.} 24. Ng4 Rfc8 (24... Nxg4 25. Qxh7#)) 24. Ng4 $1 $11 {[%emt 0:00:00]} Rfd8 {[%emt 0:00:08]} (24... Bxb2 25. Nxf6+ Qxf6 26. Qxh7#) (24... Rfe8 $1 $11 {remains equal.} 25. Bxc3 Rxc3 (25... Nxg4 26. Qxh7+ Kf8 27. Qh8#)) 25. Nxf6+ $4 {[%emt 0:01:37][%mdl 8192]} (25. Bxc3 $1 $16 {[%cal Oc3b4] is necessary to keep the advantage. Threatening mate with Bb4!.} Rxc3 (25... Nxg4 26. Qxh7+ Kf8 27. Qh8#) 26. f5 exf5 (26... Nxg4 27. Qxh7+ Kf8 28. Qh8#) 27. Bxf5) 25... Qxf6 $19 {[%emt 0:00:01]} 26. Qxh7+ {[%emt 0:00:05]} Kf8 {[%emt 0:00:02]} 27. Ba3+ {[%emt 0:00:13]} Ke8 {[%emt 0:01:24]} 28. Nxf7 {[%emt 0:00:43]} Bxd4+ $2 {[%emt 0:09:20]} (28... Qxf7 $2 29. Bxg6 Bxd4+ 30. Kh1 $18) (28... Qxd4+ $19 29. Kh1 Qd2 30. Qxg6 Qxg2+ 31. Qxg2 Bxg2+ 32. Kxg2 Kxf7) 29. Kh1 $11 {[%emt 0:00:10]} e5 $2 {[%emt 0:06:32][%mdl 8192]} (29... Qxf7 $2 30. Bxg6 Rc7 31. Bxf7+ Rxf7 32. Qg8+ Kd7 33. Qxf7+ $18) (29... Ra8 $11 {and Black stays safe.} 30. Bxg6 (30. Nxd8 Rxa3 $15) (30. Nd6+ Rxd6 31. Bxg6+ Kd8 $11) 30... Rxa3 31. Ng5+ Kf8) 30. Nxd8 $2 {[%emt 0:05:50]} (30. Bd3 $18 e4 (30... Bxf7 $2 31. fxe5 $18) (30... Qxf7 $2 31. Bxg6 Rc7 32. fxe5 $18) 31. Bb5+ (31. Nxd8 Kxd8 32. Bb5 Rc7 $15) 31... Bc6 32. Nxd8 Bxb5 33. Qg8+ Kd7 34. Qd5+ Ke8 35. Qxb5+ Kxd8 36. Qd5+ Ke8 37. Qxe4+ (37. Rd1 Rd8 $18) 37... Kd7 38. Qd5+ (38. Rd1 Rc6 $18) 38... Kc7 39. Rc1+ Bc5 40. Bxc5) 30... Kxd8 $11 {[%emt 0:00:08]} 31. Re1 $2 {[%emt 0:00:31] [#]} (31. Bxg6 Rc7 32. Qh5 Ra7 $19 (32... Bc4 33. Rd1 $16)) (31. Qxg6 $2 Qxg6 32. Bxg6 Ra8 $19) (31. Bb4 $11) 31... Rc3 $2 {[%emt 0:04:46]} ({Better is} 31... Rc7 $1 $19 {[%cal Rc7h7]} 32. Qxg6 (32. fxe5 Bxg2+ 33. Kxg2 Qf2+ 34. Kh3 Rxh7+ 35. Kg4 Qg2+ 36. Kf4 Rh4#) 32... Qxg6 (32... Qxf4 $2 33. Qd6+ Kc8 34. Qxd5 $18) 33. Bxg6 Ra7 (33... exf4 34. Re8+ Kd7 35. h4 $11)) 32. Bb2 $2 {[%emt 0:01:04][%mdl 8192] [#]} (32. Bb4 $1 $11 {and White has nothing to worry.} Rc7 33. Qxg6 (33. fxe5 {leads to mate.} Bxg2+ 34. Kxg2 Qf2+ 35. Kh3 Rxh7+ 36. Kg4 Qg2+ 37. Kf4 Rh4#) 33... Qxg6 (33... Qxf4 $2 34. Qd6+ Kc8 35. Qxd5 $18) 34. Bxg6) 32... Qc6 $2 {[%emt 0:00:56]} (32... Rc7 $1 $19 33. Qxg6 Qxg6 (33... Qxf4 $2 {is the wrong capture.} 34. Bxd4 Qxd4 35. Bf5 $18) 34. Bxg6 Bxb2) 0-1